Workbook

Sheet QuickBooks Desktop Export Tips

Sheet Sheet1
D1: Type | F1: Date | H1: Num | J1: Name | L1: Split | N1: Amount | O1: Gallons
A3: 610 · Purchased Water
D4: Bill | F4: 2023-01-04 | J4: MAYFIELD ELECTRIC & WATER SYSTEMS | L4: 20000 · Accounts Payable | N4: 9941.78 | O4: 4772200
D5: Bill | F5: 2023-01-04 | J5: MAYFIELD ELECTRIC & WATER SYSTEMS | L5: 20000 · Accounts Payable | N5: 4087.3 | O5: 1868645
D6: Bill | F6: 2023-01-04 | J6: MAYFIELD ELECTRIC & WATER SYSTEMS | L6: 20000 · Accounts Payable | N6: 7156.15 | O6: 3467314
L7: JANUARY | N7: =SUM(N4:N6) -> 21185.23 | O7: =SUM(O4:O6) -> 10108159
D9: Bill | F9: 2023-02-07 | J9: MAYFIELD ELECTRIC & WATER SYSTEMS | L9: 20000 · Accounts Payable | N9: 11581.85 | O9: 5581800
D10: Bill | F10: 2023-02-07 | J10: MAYFIELD ELECTRIC & WATER SYSTEMS | L10: 20000 · Accounts Payable | N10: 5512.03 | O10: 2609071
D11: Bill | F11: 2023-02-07 | J11: MAYFIELD ELECTRIC & WATER SYSTEMS | L11: 20000 · Accounts Payable | N11: 8017.1 | O11: 3915402
L12: FEBRUARY | N12: =SUM(N9:N11) -> 25110.98 | O12: =SUM(O9:O11) -> 12106273
D14: Bill | F14: 2023-03-03 | J14: MAYFIELD ELECTRIC & WATER SYSTEMS | L14: 20000 · Accounts Payable | N14: 7709.04 | O14: 3755069
D15: Bill | F15: 2023-03-03 | J15: MAYFIELD ELECTRIC & WATER SYSTEMS | L15: 20000 · Accounts Payable | N15: 4725.33 | O15: 2198778
D16: Bill | F16: 2023-03-13 | J16: MAYFIELD ELECTRIC & WATER SYSTEMS | L16: 20000 · Accounts Payable | N16: 11414.75 | O16: 5507850
L17: MARCH | N17: =SUM(N14:N16) -> 23849.12 | O17: =SUM(O14:O16) -> 11461697
D19: Bill | F19: 2023-04-12 | J19: MAYFIELD ELECTRIC & WATER SYSTEMS | L19: 20000 · Accounts Payable | N19: 10465.41 | O19: 5036690
D20: Bill | F20: 2023-04-12 | J20: MAYFIELD ELECTRIC & WATER SYSTEMS | L20: 20000 · Accounts Payable | N20: 6529.58 | O20: 3141215
D21: Bill | F21: 2023-04-12 | J21: MAYFIELD ELECTRIC & WATER SYSTEMS | L21: 20000 · Accounts Payable | N21: 4767.57 | O21: 2222822
L22: APRIL | N22: =SUM(N19:N21) -> 21762.56 | O22: =SUM(O19:O21) -> 10400727
D24: Bill | F24: 2023-05-15 | J24: MAYFIELD ELECTRIC & WATER SYSTEMS | L24: 20000 · Accounts Payable | N24: 11115.34 | O24: 5375790
D25: Bill | F25: 2023-05-15 | J25: MAYFIELD ELECTRIC & WATER SYSTEMS | L25: 20000 · Accounts Payable | N25: 4844.35 | O25: 2262754
D26: Bill | F26: 2023-05-15 | J26: MAYFIELD ELECTRIC & WATER SYSTEMS | L26: 20000 · Accounts Payable | N26: 8031.34 | O26: 3922813
L27: MAY | N27: =SUM(N24:N26) -> 23991.03 | O27: =SUM(O24:O26) -> 11561357
D29: Bill | F29: 2023-06-14 | H29: CON 121 | J29: MAYFIELD ELECTRIC & WATER SYSTEMS | L29: 20000 · Accounts Payable | N29: 11388.49 | O29: 5510410
D30: Bill | F30: 2023-06-14 | H30: CON BKSG | J30: MAYFIELD ELECTRIC & WATER SYSTEMS | L30: 20000 · Accounts Payable | N30: 7968.75 | O30: 3890236
D31: Bill | F31: 2023-06-14 | H31: HRD | J31: MAYFIELD ELECTRIC & WATER SYSTEMS | L31: 20000 · Accounts Payable | N31: 4142.37 | O31: 1897427
L32: JUNE | N32: =SUM(N29:N31) -> 23499.61 | O32: =SUM(O29:O31) -> 11298073
D34: Bill | F34: 2023-07-10 | J34: MAYFIELD ELECTRIC & WATER SYSTEMS | L34: 20000 · Accounts Payable | N34: 4487.28 | O34: 2076802
D35: Bill | F35: 2023-07-10 | H35: 2nd feed | J35: MAYFIELD ELECTRIC & WATER SYSTEMS | L35: 20000 · Accounts Payable | N35: 9266.6 | O35: 4565706
D36: Bill | F36: 2023-07-10 | J36: MAYFIELD ELECTRIC & WATER SYSTEMS | L36: 20000 · Accounts Payable | N36: 14272.41 | O36: 6949990
L37: JULY | N37: =SUM(N34:N36) -> 28026.29 | O37: =SUM(O34:O36) -> 13592498
D39: Bill | F39: 2023-08-10 | H39: hrd | J39: MAYFIELD ELECTRIC & WATER SYSTEMS | L39: 20000 · Accounts Payable | N39: 4726.64 | O39: 2201437
D40: Bill | F40: 2023-08-10 | H40: CON | J40: MAYFIELD ELECTRIC & WATER SYSTEMS | L40: 20000 · Accounts Payable | N40: 8877.71 | O40: 4363309
D41: Bill | F41: 2023-08-10 | H41: CON2 | J41: MAYFIELD ELECTRIC & WATER SYSTEMS | L41: 20000 · Accounts Payable | N41: 13021.47 | O41: 6331060
L42: AUGUST | N42: =SUM(N39:N41) -> 26625.82 | O42: =SUM(O39:O41) -> 12895806
D44: Bill | F44: 2023-09-14 | H44: CON121 | J44: MAYFIELD ELECTRIC & WATER SYSTEMS | L44: 20000 · Accounts Payable | N44: 13426.15 | O44: 6545220
D45: Bill | F45: 2023-09-14 | H45: HRD | J45: MAYFIELD ELECTRIC & WATER SYSTEMS | L45: 20000 · Accounts Payable | N45: 6265.07 | O45: 3002060
D46: Bill | F46: 2023-09-14 | H46: CONBKS | J46: MAYFIELD ELECTRIC & WATER SYSTEMS | L46: 20000 · Accounts Payable | N46: 9407.05 | O46: 4638803
D47: Bill | F47: 2023-09-14 | H47: HK | J47: MAYFIELD ELECTRIC & WATER SYSTEMS | L47: 20000 · Accounts Payable | N47: 826.45 | O47: 145758
L48: SEPTEMBER | N48: =SUM(N44:N47) -> 29924.72 | O48: =SUM(O44:O47) -> 14331841
D50: Bill | F50: 2023-10-09 | H50: CONSBACK | J50: MAYFIELD ELECTRIC & WATER SYSTEMS | L50: 20000 · Accounts Payable | N50: 8723.08 | O50: 4282831
D51: Bill | F51: 2023-10-09 | H51: HARDEMAN | J51: MAYFIELD ELECTRIC & WATER SYSTEMS | L51: 20000 · Accounts Payable | N51: 4128.04 | O51: 1889941
D52: Bill | F52: 2023-10-09 | H52: HICKORY | J52: MAYFIELD ELECTRIC & WATER SYSTEMS | L52: 20000 · Accounts Payable | N52: 2686.44 | O52: 708071
D53: Bill | F53: 2023-10-09 | H53: CONSUMBERS121 | J53: MAYFIELD ELECTRIC & WATER SYSTEMS | L53: 20000 · Accounts Payable | N53: 11459.99 | O53: 5557640
L54: OCTOBER | N54: =SUM(N50:N53) -> 26997.55 | O54: =SUM(O50:O53) -> 12438483
D56: Bill | F56: 2023-11-08 | J56: MAYFIELD ELECTRIC & WATER SYSTEMS | L56: 20000 · Accounts Payable | N56: 11364.14 | O56: 5524290
D57: Bill | F57: 2023-11-08 | J57: MAYFIELD ELECTRIC & WATER SYSTEMS | L57: 20000 · Accounts Payable | N57: 8329.69 | O57: 4075946
D58: Bill | F58: 2023-11-08 | J58: MAYFIELD ELECTRIC & WATER SYSTEMS | L58: 20000 · Accounts Payable | N58: 4008.64 | O58: 1825648
L59: NOVEMBER | N59: =SUM(N56:N58) -> 23702.47 | O59: =SUM(O56:O58) -> 11425884
D61: Bill | F61: 2023-12-19 | J61: MAYFIELD ELECTRIC & WATER SYSTEMS | L61: 20000 · Accounts Payable | N61: 4037.55 | O61: 1840580
D62: Bill | F62: 2023-12-19 | J62: MAYFIELD ELECTRIC & WATER SYSTEMS | L62: 20000 · Accounts Payable | N62: 8235.19 | O62: 4026762
D63: Bill | F63: 2023-12-19 | J63: MAYFIELD ELECTRIC & WATER SYSTEMS | L63: 20000 · Accounts Payable | N63: 11284.9 | O63: 5484230
L64: DECEMBER | N64: =SUM(N61:N63) -> 23557.64 | O64: =SUM(O61:O63) -> 11351572
A66: Total 610 · Purchased Water | N66: =SUM(N7,N12,N17,N22,N27,N32,N37,N42,N48,N54,N59,N64) -> 298233.02 | O66: =SUM(O7,O12,O17,O22,O27,O32,O37,O42,O48,O54,O59,O64) -> 142972370
